[Event "Titled Tuesday Blitz June 27 Early 2023"]
[White "splendidkid"]
[Black "Suleymanli, Aydin"]
[BlackFideId "13413937"]
[WhiteElo "2732"]
[BlackElo "2929"]
[Result "1/2-1/2"]
[Round "9"]
[TimeControl "180+2"]
[Date "2023.06.27"]
[WhiteClock "0:00:02"]
[BlackClock "0:00:04"]
[Board "20"]

1. d4 {[%clk 0:03:00]}  e6 {[%clk 0:02:58]} 2. Nf3 {[%clk 0:02:55]}  Nf6 {[%clk 0:02:57]} 3. c4 {[%clk 0:02:55]}  b6 {[%clk 0:02:58]} 4. g3 {[%clk 0:02:54]}  Bb7 {[%clk 0:02:58]} 5. Bg2 {[%clk 0:02:55]}  Be7 {[%clk 0:02:59]} 6. O-O {[%clk 0:02:55]}  O-O {[%clk 0:03:00]} 7. Nc3 {[%clk 0:02:55]}  Ne4 {[%clk 0:02:57]} 8. Qc2 {[%clk 0:02:55]}  Nxc3 {[%clk 0:02:56]} 9. Qxc3 {[%clk 0:02:56]}  Be4 {[%clk 0:02:53]} 10. Qe3 {[%clk 0:02:47]}  f5 {[%clk 0:02:47]} 11. b3 {[%clk 0:02:47]}  Nc6 {[%clk 0:02:47]} 12. Bb2 {[%clk 0:02:47]}  Bf6 {[%clk 0:02:47]} 13. Rfd1 {[%clk 0:02:43]}  d6 {[%clk 0:02:42]} 14. Rac1 {[%clk 0:02:41]}  Qd7 {[%clk 0:02:40]} 15. a3 {[%clk 0:02:32]}  Rae8 {[%clk 0:02:31]} 16. h4 {[%clk 0:02:30]}  g6 {[%clk 0:02:26]} 17. b4 {[%clk 0:02:21]}  Qg7 {[%clk 0:02:24]} 18. Bc3 {[%clk 0:02:17]}  a6 {[%clk 0:02:18]} 19. Bh3 {[%clk 0:02:11]}  b5 {[%clk 0:02:15]} 20. d5 {[%clk 0:01:55]}  exd5 {[%clk 0:02:02]} 21. Bxf6 {[%clk 0:01:51]}  Qxf6 {[%clk 0:02:02]} 22. cxb5 {[%clk 0:01:49]}  Ne5 {[%clk 0:01:25]} 23. Nxe5 {[%clk 0:01:20]}  Qxe5 {[%clk 0:01:09]} 24. bxa6 {[%clk 0:00:48]}  f4 {[%clk 0:01:08]} 25. gxf4 {[%clk 0:00:48]}  Rxf4 {[%clk 0:01:08]} 26. Qg3 {[%clk 0:00:48]}  Ref8 {[%clk 0:00:36]} 27. a7 {[%clk 0:00:43]}  Qf6 {[%clk 0:00:22]} 28. Rxc7 {[%clk 0:00:34]}  Rxh4 {[%clk 0:00:15]} 29. f3 {[%clk 0:00:23]}  Rh5 {[%clk 0:00:09]} 30. Bg4 {[%clk 0:00:13]}  Rg5 {[%clk 0:00:03]} 31. Rdc1 {[%clk 0:00:10]}  Qd4+ {[%clk 0:00:01]} 32. Kh2 {[%clk 0:00:10]}  Rxg4 {[%clk 0:00:01]} 33. fxg4 {[%clk 0:00:07]}  Rf2+ {[%clk 0:00:01]} 34. Kh3 {[%clk 0:00:07]}  Bg2+ {[%clk 0:00:01]} 35. Qxg2 {[%clk 0:00:08]}  Qe3+ {[%clk 0:00:02]} 36. Qg3 {[%clk 0:00:07]}  Qh6+ {[%clk 0:00:02]} 37. Qh4 {[%clk 0:00:06]}  Qe3+ {[%clk 0:00:02]} 38. Qg3 {[%clk 0:00:03]}  Qh6+ {[%clk 0:00:03]} 39. Qh4 {[%clk 0:00:03]}  Qe3+ {[%clk 0:00:04]} 40. Qg3 {[%clk 0:00:02]} 1/2-1/2


[Site "https://www.chess.com"]

[Event "Titled Tuesday Blitz June 27 Early 2023"]
[White "Movahed, Sina"]
[Black "Csonka, Balazs"]
[WhiteFideId "42520835"]
[BlackFideId "742910"]
[WhiteElo "2923"]
[BlackElo "2729"]
[Result "0-1"]
[Round "9"]
[TimeControl "180+2"]
[Date "2023.06.27"]
[WhiteClock "0:00:24"]
[BlackClock "0:00:11"]
[Board "21"]

1. Nf3 {[%clk 0:03:00]}  d5 {[%clk 0:02:56]} 2. g3 {[%clk 0:03:00]}  Nc6 {[%clk 0:02:54]} 3. d4 {[%clk 0:02:59]}  Bf5 {[%clk 0:02:53]} 4. c4 {[%clk 0:02:59]}  e6 {[%clk 0:02:50]} 5. Bg2 {[%clk 0:02:59]}  Nb4 {[%clk 0:02:50]} 6. O-O {[%clk 0:02:58]}  Nc2 {[%clk 0:02:46]} 7. cxd5 {[%clk 0:02:58]}  Nxa1 {[%clk 0:02:44]} 8. e4 {[%clk 0:02:55]}  Bxe4 {[%clk 0:02:30]} 9. dxe6 {[%clk 0:02:55]}  Bxb1 {[%clk 0:02:03]} 10. exf7+ {[%clk 0:02:54]}  Kxf7 {[%clk 0:02:04]} 11. Ne5+ {[%clk 0:02:54]}  Ke8 {[%clk 0:02:04]} 12. Qa4+ {[%clk 0:02:38]}  c6 {[%clk 0:01:55]} 13. Bxc6+ {[%clk 0:02:38]}  bxc6 {[%clk 0:01:53]} 14. Qxc6+ {[%clk 0:02:39]}  Ke7 {[%clk 0:01:50]} 15. Qb7+ {[%clk 0:02:34]}  Ke6 {[%clk 0:01:41]} 16. Qf7+ {[%clk 0:02:28]}  Kd6 {[%clk 0:01:41]} 17. Bf4 {[%clk 0:02:28]}  g5 {[%clk 0:00:56]} 18. Rc1 {[%clk 0:02:25]}  Bc2 {[%clk 0:00:46]} 19. Qb7 {[%clk 0:01:51]}  Ke6 {[%clk 0:00:33]} 20. Qf7+ {[%clk 0:01:46]}  Kd6 {[%clk 0:00:33]} 21. Nc4+ {[%clk 0:01:16]}  Kc6 {[%clk 0:00:33]} 22. d5+ {[%clk 0:01:14]}  Kb5 {[%clk 0:00:12]} 23. Qb7+ {[%clk 0:00:43]}  Kxc4 {[%clk 0:00:12]} 24. Qc6+ {[%clk 0:00:35]}  Kd3 {[%clk 0:00:12]} 25. Qc3+ {[%clk 0:00:32]}  Ke4 {[%clk 0:00:12]} 26. Qe5+ {[%clk 0:00:31]}  Kd3 {[%clk 0:00:13]} 27. Re1 {[%clk 0:00:30]}  Kc4 {[%clk 0:00:08]} 28. Qc3+ {[%clk 0:00:28]}  Kb5 {[%clk 0:00:08]} 29. Bc7 {[%clk 0:00:28]}  Qxd5 {[%clk 0:00:05]} 30. Re5 {[%clk 0:00:26]}  Be4 {[%clk 0:00:05]} 31. Rxd5+ {[%clk 0:00:22]}  Bxd5 {[%clk 0:00:06]} 32. Qxh8 {[%clk 0:00:23]}  Bc5 {[%clk 0:00:04]} 33. Qe5 {[%clk 0:00:21]}  Kc6 {[%clk 0:00:03]} 34. b4 {[%clk 0:00:14]}  Bxb4 {[%clk 0:00:01]} 35. Qxa1 {[%clk 0:00:14]}  Kxc7 {[%clk 0:00:01]} 36. Qd4 {[%clk 0:00:15]}  Kd6 {[%clk 0:00:02]} 37. Qxb4+ {[%clk 0:00:15]}  Ke6 {[%clk 0:00:02]} 38. Qd2 {[%clk 0:00:15]}  Nf6 {[%clk 0:00:02]} 39. Qxg5 {[%clk 0:00:15]}  Rb8 {[%clk 0:00:03]} 40. Qe3+ {[%clk 0:00:15]}  Kf7 {[%clk 0:00:03]} 41. Qxa7+ {[%clk 0:00:15]}  Rb7 {[%clk 0:00:03]} 42. Qxb7+ {[%clk 0:00:09]}  Bxb7 {[%clk 0:00:03]} 43. f4 {[%clk 0:00:10]}  Nd5 {[%clk 0:00:03]} 44. Kf2 {[%clk 0:00:09]}  Nc3 {[%clk 0:00:04]} 45. a3 {[%clk 0:00:10]}  Bc6 {[%clk 0:00:04]} 46. Ke3 {[%clk 0:00:10]}  Nb1 {[%clk 0:00:05]} 47. Kd4 {[%clk 0:00:11]}  Nxa3 {[%clk 0:00:05]} 48. f5 {[%clk 0:00:11]}  Be8 {[%clk 0:00:06]} 49. g4 {[%clk 0:00:10]}  Nb5+ {[%clk 0:00:07]} 50. Ke5 {[%clk 0:00:11]}  Nc3 {[%clk 0:00:06]} 51. g5 {[%clk 0:00:11]}  Kg7 {[%clk 0:00:06]} 52. h4 {[%clk 0:00:10]}  Bh5 {[%clk 0:00:07]} 53. g6 {[%clk 0:00:09]}  hxg6 {[%clk 0:00:06]} 54. fxg6 {[%clk 0:00:09]}  Bxg6 {[%clk 0:00:07]} 55. Kd4 {[%clk 0:00:10]}  Ne4 {[%clk 0:00:07]} 56. Ke5 {[%clk 0:00:11]}  Kh6 {[%clk 0:00:07]} 57. h5 {[%clk 0:00:11]}  Kxh5 {[%clk 0:00:07]} 58. Kf4 {[%clk 0:00:12]}  Kh4 {[%clk 0:00:07]} 59. Ke3 {[%clk 0:00:13]}  Kg5 {[%clk 0:00:08]} 60. Kd4 {[%clk 0:00:14]}  Kf4 {[%clk 0:00:09]} 61. Kd5 {[%clk 0:00:15]}  Bf5 {[%clk 0:00:10]} 62. Kd4 {[%clk 0:00:16]}  Be6 {[%clk 0:00:10]} 63. Kd3 {[%clk 0:00:15]}  Bd5 {[%clk 0:00:08]} 64. Kd4 {[%clk 0:00:16]}  Bc6 {[%clk 0:00:08]} 65. Kd3 {[%clk 0:00:17]}  Nf6 {[%clk 0:00:06]} 66. Kd4 {[%clk 0:00:12]}  Nd7 {[%clk 0:00:06]} 67. Kd3 {[%clk 0:00:12]}  Ke5 {[%clk 0:00:07]} 68. Ke3 {[%clk 0:00:11]}  Be4 {[%clk 0:00:08]} 69. Kd2 {[%clk 0:00:12]}  Nb6 {[%clk 0:00:08]} 70. Kc3 {[%clk 0:00:13]}  Kd5 {[%clk 0:00:08]} 71. Kd2 {[%clk 0:00:13]}  Kd4 {[%clk 0:00:09]} 72. Ke2 {[%clk 0:00:14]}  Nd5 {[%clk 0:00:09]} 73. Kf2 {[%clk 0:00:14]}  Nf6 {[%clk 0:00:09]} 74. Kg3 {[%clk 0:00:15]}  Ke5 {[%clk 0:00:10]} 75. Kh4 {[%clk 0:00:16]}  Kf5 {[%clk 0:00:09]} 76. Kg3 {[%clk 0:00:16]}  Ng4 {[%clk 0:00:10]} 77. Kh4 {[%clk 0:00:16]}  Kf4 {[%clk 0:00:10]} 78. Kh5 {[%clk 0:00:17]}  Bf5 {[%clk 0:00:07]} 79. Kh4 {[%clk 0:00:16]}  Bg6 {[%clk 0:00:08]} 80. Kh3 {[%clk 0:00:16]}  Ne3 {[%clk 0:00:07]} 81. Kh4 {[%clk 0:00:16]}  Ng2+ {[%clk 0:00:06]} 82. Kh3 {[%clk 0:00:16]}  Kf3 {[%clk 0:00:07]} 83. Kh2 {[%clk 0:00:16]}  Bf5 {[%clk 0:00:07]} 84. Kg1 {[%clk 0:00:17]}  Kg3 {[%clk 0:00:08]} 85. Kf1 {[%clk 0:00:17]}  Bd3+ {[%clk 0:00:08]} 86. Kg1 {[%clk 0:00:17]}  Nf4 {[%clk 0:00:07]} 87. Kh1 {[%clk 0:00:17]}  Bc4 {[%clk 0:00:06]} 88. Kg1 {[%clk 0:00:17]}  Ne2+ {[%clk 0:00:07]} 89. Kf1 {[%clk 0:00:17]}  Kf3 {[%clk 0:00:07]} 90. Ke1 {[%clk 0:00:18]}  Ke3 {[%clk 0:00:08]} 91. Kd1 {[%clk 0:00:19]}  Bb3+ {[%clk 0:00:08]} 92. Ke1 {[%clk 0:00:19]}  Nf4 {[%clk 0:00:08]} 93. Kf1 {[%clk 0:00:20]}  Bd1 {[%clk 0:00:08]} 94. Ke1 {[%clk 0:00:20]}  Bf3 {[%clk 0:00:08]} 95. Kf1 {[%clk 0:00:20]}  Nd3 {[%clk 0:00:08]} 96. Kg1 {[%clk 0:00:20]}  Kf4 {[%clk 0:00:09]} 97. Kh2 {[%clk 0:00:20]}  Kg4 {[%clk 0:00:08]} 98. Kg1 {[%clk 0:00:21]}  Kg3 {[%clk 0:00:08]} 99. Kf1 {[%clk 0:00:22]}  Bg4 {[%clk 0:00:08]} 100. Kg1 {[%clk 0:00:22]}  Be2 {[%clk 0:00:09]} 101. Kh1 {[%clk 0:00:22]}  Nf2+ {[%clk 0:00:10]} 102. Kg1 {[%clk 0:00:23]}  Nh3+ {[%clk 0:00:10]} 103. Kh1 {[%clk 0:00:24]}  Bf3# {[%clk 0:00:11]} 0-1


[Site "https://www.chess.com"]

[Event "Titled Tuesday Blitz June 27 Early 2023"]
[White "Hambleton, Aman"]
[Black "Kantor, Gergely"]
[WhiteFideId "2606577"]
[BlackFideId "751499"]
[WhiteElo "2705"]
[BlackElo "2845"]
[Result "0-1"]
[Round "9"]
[TimeControl "180+2"]
[Date "2023.06.27"]
[WhiteClock "0:00:00"]
[BlackClock "0:02:38"]
[Board "24"]

1. d4 {[%clk 0:01:56]}  Nc6 {[%clk 0:03:00]} 2. d5 {[%clk 0:01:39]}  Ne5 {[%clk 0:03:00]} 3. Nf3 {[%clk 0:01:26]}  Nxf3+ {[%clk 0:02:59]} 4. exf3 {[%clk 0:01:26]}  d6 {[%clk 0:03:00]} 5. Bc4 {[%clk 0:01:22]}  Nf6 {[%clk 0:03:00]} 6. O-O {[%clk 0:01:21]}  g6 {[%clk 0:03:00]} 7. Re1 {[%clk 0:01:20]}  Bg7 {[%clk 0:03:00]} 8. Qe2 {[%clk 0:01:20]}  c6 {[%clk 0:02:50]} 9. Nc3 {[%clk 0:01:04]}  b5 {[%clk 0:02:48]} 10. Bb3 {[%clk 0:00:47]}  b4 {[%clk 0:02:48]} 11. Ne4 {[%clk 0:00:47]}  Nxd5 {[%clk 0:02:48]} 12. Bxd5 {[%clk 0:00:42]}  cxd5 {[%clk 0:02:48]} 13. Qb5+ {[%clk 0:00:43]}  Bd7 {[%clk 0:02:40]} 14. Nxd6+ {[%clk 0:00:17]}  Kf8 {[%clk 0:02:40]} 15. Qxd5 {[%clk 0:00:18]}  Be6 {[%clk 0:02:38]} 16. Rxe6 {[%clk 0:00:00]}  fxe6 {[%clk 0:02:38]} 0-1


[Site "https://www.chess.com"]

[Event "Titled Tuesday Blitz June 27 Early 2023"]
[White "Halkias, Stelios"]
[Black "Mendez Fortes, Eduardo Jesus"]
[WhiteFideId "4201809"]
[BlackFideId "3502376"]
[WhiteElo "2782"]
[BlackElo "2600"]
[Result "1-0"]
[Round "9"]
[TimeControl "180+2"]
[Date "2023.06.27"]
[WhiteClock "0:01:13"]
[BlackClock "0:00:10"]
[Board "30"]

1. Nf3 {[%clk 0:03:00]}  d5 {[%clk 0:02:57]} 2. d4 {[%clk 0:03:00]}  Nf6 {[%clk 0:02:56]} 3. c4 {[%clk 0:03:00]}  e6 {[%clk 0:02:56]} 4. g3 {[%clk 0:03:00]}  dxc4 {[%clk 0:02:56]} 5. Bg2 {[%clk 0:03:00]}  a6 {[%clk 0:02:56]} 6. O-O {[%clk 0:02:59]}  Nc6 {[%clk 0:02:56]} 7. Nc3 {[%clk 0:02:58]}  Rb8 {[%clk 0:02:56]} 8. e4 {[%clk 0:02:57]}  Be7 {[%clk 0:02:54]} 9. d5 {[%clk 0:02:50]}  Nb4 {[%clk 0:02:53]} 10. Ne5 {[%clk 0:02:46]}  exd5 {[%clk 0:02:52]} 11. exd5 {[%clk 0:02:46]}  Bf5 {[%clk 0:02:52]} 12. Nxc4 {[%clk 0:02:43]}  O-O {[%clk 0:02:51]} 13. Ne3 {[%clk 0:02:40]}  Bg6 {[%clk 0:02:50]} 14. Bd2 {[%clk 0:02:33]}  Nd3 {[%clk 0:02:34]} 15. Nc4 {[%clk 0:02:21]}  Nb4 {[%clk 0:02:19]} 16. Bf4 {[%clk 0:02:18]}  Bd3 {[%clk 0:02:12]} 17. b3 {[%clk 0:02:14]}  Bxf1 {[%clk 0:02:07]} 18. Qxf1 {[%clk 0:02:03]}  Nbxd5 {[%clk 0:01:11]} 19. Nxd5 {[%clk 0:02:01]}  Nxd5 {[%clk 0:01:12]} 20. Rd1 {[%clk 0:02:00]}  c6 {[%clk 0:01:09]} 21. Bxb8 {[%clk 0:01:58]}  Qxb8 {[%clk 0:01:10]} 22. Bxd5 {[%clk 0:01:57]}  cxd5 {[%clk 0:01:11]} 23. Rxd5 {[%clk 0:01:57]}  b5 {[%clk 0:01:06]} 24. Ne5 {[%clk 0:01:56]}  Qb7 {[%clk 0:01:06]} 25. Qd3 {[%clk 0:01:54]}  Rc8 {[%clk 0:01:00]} 26. Qf3 {[%clk 0:01:51]}  Bf8 {[%clk 0:00:55]} 27. Nd7 {[%clk 0:01:33]}  Rc1+ {[%clk 0:00:23]} 28. Kg2 {[%clk 0:01:31]}  Be7 {[%clk 0:00:20]} 29. Nf6+ {[%clk 0:01:18]}  gxf6 {[%clk 0:00:10]} 30. Rg5+ {[%clk 0:01:13]} 1-0


[Site "https://www.chess.com"]

[Event "Titled Tuesday Blitz June 27 Early 2023"]
[White "Yeritsyan, Hayk"]
[Black "Morefield, Jason"]
[WhiteFideId "13307320"]
[BlackFideId "30920825"]
[WhiteElo "2499"]
[BlackElo "2759"]
[Result "0-1"]
[Round "9"]
[TimeControl "180+2"]
[Date "2023.06.27"]
[WhiteClock "0:00:28"]
[BlackClock "0:01:04"]
[Board "31"]

1. d4 {[%clk 0:02:58]}  Nf6 {[%clk 0:02:59]} 2. Nf3 {[%clk 0:02:56]}  b6 {[%clk 0:03:00]} 3. Bf4 {[%clk 0:02:55]}  Bb7 {[%clk 0:03:00]} 4. e3 {[%clk 0:02:55]}  g6 {[%clk 0:03:00]} 5. h3 {[%clk 0:02:55]}  Bg7 {[%clk 0:03:01]} 6. Be2 {[%clk 0:02:56]}  O-O {[%clk 0:03:01]} 7. c3 {[%clk 0:02:57]}  c5 {[%clk 0:03:02]} 8. O-O {[%clk 0:02:57]}  d6 {[%clk 0:03:03]} 9. Bh2 {[%clk 0:02:58]}  Nbd7 {[%clk 0:03:03]} 10. Nbd2 {[%clk 0:02:58]}  Re8 {[%clk 0:03:03]} 11. Rc1 {[%clk 0:02:57]}  a6 {[%clk 0:03:01]} 12. Re1 {[%clk 0:02:57]}  b5 {[%clk 0:03:02]} 13. Nb3 {[%clk 0:02:56]}  Rc8 {[%clk 0:03:00]} 14. Rf1 {[%clk 0:02:55]}  Qb6 {[%clk 0:02:54]} 15. Re1 {[%clk 0:02:55]}  e5 {[%clk 0:02:53]} 16. Rf1 {[%clk 0:02:55]}  a5 {[%clk 0:02:45]} 17. Nbd2 {[%clk 0:02:45]}  cxd4 {[%clk 0:02:36]} 18. cxd4 {[%clk 0:02:42]}  Rxc1 {[%clk 0:02:35]} 19. Qxc1 {[%clk 0:02:42]}  Rc8 {[%clk 0:02:36]} 20. Qb1 {[%clk 0:02:41]}  e4 {[%clk 0:02:30]} 21. Ne1 {[%clk 0:02:33]}  Qc6 {[%clk 0:02:19]} 22. g4 {[%clk 0:02:24]}  d5 {[%clk 0:02:08]} 23. Bd1 {[%clk 0:01:53]}  b4 {[%clk 0:01:53]} 24. Ng2 {[%clk 0:01:40]}  Ba6 {[%clk 0:01:52]} 25. Re1 {[%clk 0:01:33]}  g5 {[%clk 0:01:52]} 26. Nb3 {[%clk 0:01:01]}  Bd3 {[%clk 0:01:45]} 27. Qa1 {[%clk 0:00:58]}  a4 {[%clk 0:01:46]} 28. Nc1 {[%clk 0:00:56]}  Qxc1 {[%clk 0:01:44]} 29. Qxc1 {[%clk 0:00:57]}  Rxc1 {[%clk 0:01:44]} 30. Bxa4 {[%clk 0:00:58]}  Rxe1+ {[%clk 0:01:41]} 31. Nxe1 {[%clk 0:00:58]}  Nb6 {[%clk 0:01:40]} 32. Nxd3 {[%clk 0:00:57]}  exd3 {[%clk 0:01:39]} 33. Bd1 {[%clk 0:00:52]}  Nc4 {[%clk 0:01:38]} 34. a4 {[%clk 0:00:48]}  bxa3 {[%clk 0:01:34]} 35. bxa3 {[%clk 0:00:49]}  Nxa3 {[%clk 0:01:34]} 36. f3 {[%clk 0:00:50]}  Nc4 {[%clk 0:01:34]} 37. Kf2 {[%clk 0:00:50]}  Bf8 {[%clk 0:01:23]} 38. Bb3 {[%clk 0:00:48]}  Bb4 {[%clk 0:01:19]} 39. e4 {[%clk 0:00:42]}  Na5 {[%clk 0:01:04]} 40. Bxd5 {[%clk 0:00:40]}  Nxd5 {[%clk 0:01:04]} 41. exd5 {[%clk 0:00:41]}  d2 {[%clk 0:01:04]} 42. Ke2 {[%clk 0:00:41]}  Nc4 {[%clk 0:01:04]} 43. d6 {[%clk 0:00:28]}  Nb2 {[%clk 0:01:04]} 0-1


[Site "https://www.chess.com"]

[Event "Titled Tuesday Blitz June 27 Early 2023"]
[White "Iskusnyh, Sergei"]
[Black "Pap, Gyula"]
[WhiteFideId "4120027"]
[BlackFideId "725323"]
[WhiteElo "2606"]
[BlackElo "2926"]
[Result "1-0"]
[Round "9"]
[TimeControl "180+2"]
[Date "2023.06.27"]
[WhiteClock "0:00:07"]
[BlackClock "0:00:25"]
[Board "33"]

1. d4 {[%clk 0:03:00]}  d5 {[%clk 0:02:59]} 2. c4 {[%clk 0:02:59]}  e6 {[%clk 0:03:00]} 3. Nf3 {[%clk 0:02:58]}  Nf6 {[%clk 0:02:59]} 4. Nc3 {[%clk 0:02:57]}  Nbd7 {[%clk 0:02:59]} 5. Bf4 {[%clk 0:02:55]}  dxc4 {[%clk 0:02:58]} 6. e3 {[%clk 0:02:42]}  b5 {[%clk 0:02:54]} 7. Nxb5 {[%clk 0:02:36]}  Bb4+ {[%clk 0:02:55]} 8. Nc3 {[%clk 0:02:35]}  Nd5 {[%clk 0:02:55]} 9. Qc2 {[%clk 0:02:32]}  N7b6 {[%clk 0:02:42]} 10. Bg3 {[%clk 0:02:27]}  Bd7 {[%clk 0:02:28]} 11. Be2 {[%clk 0:02:25]}  O-O {[%clk 0:02:22]} 12. O-O {[%clk 0:02:24]}  Rb8 {[%clk 0:02:23]} 13. e4 {[%clk 0:02:14]}  Nxc3 {[%clk 0:02:11]} 14. bxc3 {[%clk 0:02:15]}  Ba4 {[%clk 0:02:11]} 15. Qd2 {[%clk 0:02:13]}  Ba5 {[%clk 0:02:12]} 16. Ne5 {[%clk 0:02:11]}  c5 {[%clk 0:02:12]} 17. Nxc4 {[%clk 0:01:59]}  Nxc4 {[%clk 0:02:08]} 18. Bxc4 {[%clk 0:02:00]}  cxd4 {[%clk 0:02:09]} 19. Qxd4 {[%clk 0:01:57]}  Rc8 {[%clk 0:02:00]} 20. Bb3 {[%clk 0:01:38]}  Bb5 {[%clk 0:01:49]} 21. Qxd8 {[%clk 0:01:12]}  Rfxd8 {[%clk 0:01:50]} 22. Rfd1 {[%clk 0:01:12]}  Bxc3 {[%clk 0:01:47]} 23. Rxd8+ {[%clk 0:01:09]}  Rxd8 {[%clk 0:01:47]} 24. Rd1 {[%clk 0:01:09]}  Rd4 {[%clk 0:01:32]} 25. f3 {[%clk 0:00:57]}  e5 {[%clk 0:01:05]} 26. Bf2 {[%clk 0:00:53]}  Rxd1+ {[%clk 0:01:03]} 27. Bxd1 {[%clk 0:00:54]}  Bd4 {[%clk 0:01:04]} 28. Bxd4 {[%clk 0:00:51]}  exd4 {[%clk 0:01:04]} 29. Kf2 {[%clk 0:00:52]}  f6 {[%clk 0:01:03]} 30. Ke1 {[%clk 0:00:46]}  Kf7 {[%clk 0:01:02]} 31. Be2 {[%clk 0:00:39]}  Bc6 {[%clk 0:00:54]} 32. Bc4+ {[%clk 0:00:21]}  Ke7 {[%clk 0:00:54]} 33. Kd2 {[%clk 0:00:21]}  g5 {[%clk 0:00:53]} 34. Kd3 {[%clk 0:00:20]}  Kd6 {[%clk 0:00:53]} 35. Kxd4 {[%clk 0:00:20]}  h5 {[%clk 0:00:54]} 36. g3 {[%clk 0:00:20]}  Bd7 {[%clk 0:00:50]} 37. f4 {[%clk 0:00:20]}  gxf4 {[%clk 0:00:51]} 38. gxf4 {[%clk 0:00:21]}  Bg4 {[%clk 0:00:51]} 39. e5+ {[%clk 0:00:20]}  fxe5+ {[%clk 0:00:52]} 40. fxe5+ {[%clk 0:00:21]}  Ke7 {[%clk 0:00:53]} 41. Kc5 {[%clk 0:00:20]}  Bd7 {[%clk 0:00:51]} 42. Bd5 {[%clk 0:00:17]}  Ba4 {[%clk 0:00:49]} 43. Kb4 {[%clk 0:00:15]}  Bd1 {[%clk 0:00:49]} 44. Ka5 {[%clk 0:00:15]}  Be2 {[%clk 0:00:49]} 45. a3 {[%clk 0:00:14]}  h4 {[%clk 0:00:49]} 46. Kb4 {[%clk 0:00:14]}  Bd3 {[%clk 0:00:49]} 47. Kc5 {[%clk 0:00:13]}  Be2 {[%clk 0:00:49]} 48. Kc6 {[%clk 0:00:12]}  Ba6 {[%clk 0:00:37]} 49. Kc7 {[%clk 0:00:12]}  Be2 {[%clk 0:00:37]} 50. Kb7 {[%clk 0:00:10]}  a5 {[%clk 0:00:37]} 51. Kb6 {[%clk 0:00:10]}  a4 {[%clk 0:00:38]} 52. Ka5 {[%clk 0:00:10]}  Bd1 {[%clk 0:00:38]} 53. Kb4 {[%clk 0:00:08]}  Kd7 {[%clk 0:00:36]} 54. Bc4 {[%clk 0:00:07]}  Ke7 {[%clk 0:00:35]} 55. Kc5 {[%clk 0:00:03]}  Bc2 {[%clk 0:00:35]} 56. Kd4 {[%clk 0:00:03]}  Kd7 {[%clk 0:00:35]} 57. Ke3 {[%clk 0:00:03]}  Kc6 {[%clk 0:00:36]} 58. Kf4 {[%clk 0:00:03]}  Kc5 {[%clk 0:00:36]} 59. Bf7 {[%clk 0:00:03]}  Bb3 {[%clk 0:00:35]} 60. e6 {[%clk 0:00:03]}  Kd6 {[%clk 0:00:35]} 61. Kg4 {[%clk 0:00:03]}  Bxe6+ {[%clk 0:00:25]} 62. Bxe6 {[%clk 0:00:02]}  Kxe6 {[%clk 0:00:26]} 63. Kxh4 {[%clk 0:00:03]}  Kd5 {[%clk 0:00:27]} 64. Kg4 {[%clk 0:00:02]}  Kc4 {[%clk 0:00:28]} 65. h4 {[%clk 0:00:03]}  Kb3 {[%clk 0:00:28]} 66. h5 {[%clk 0:00:04]}  Kxa3 {[%clk 0:00:29]} 67. h6 {[%clk 0:00:05]}  Ka2 {[%clk 0:00:29]} 68. h7 {[%clk 0:00:06]}  a3 {[%clk 0:00:30]} 69. h8=Q {[%clk 0:00:06]}  Kb1 {[%clk 0:00:31]} 70. Qh1+ {[%clk 0:00:05]}  Kb2 {[%clk 0:00:31]} 71. Qg2+ {[%clk 0:00:06]}  Kb1 {[%clk 0:00:31]} 72. Qf1+ {[%clk 0:00:06]}  Kb2 {[%clk 0:00:32]} 73. Qe2+ {[%clk 0:00:06]}  Kb1 {[%clk 0:00:33]} 74. Qe1+ {[%clk 0:00:07]}  Kb2 {[%clk 0:00:25]} 75. Qb4+ {[%clk 0:00:07]} 1-0


[Site "https://www.chess.com"]

[Event "Titled Tuesday Blitz June 27 Early 2023"]
[White "Krutko, Anatoly"]
[Black "Rahman, Masruri"]
[WhiteFideId "4185862"]
[BlackFideId "7101163"]
[WhiteElo "2574"]
[BlackElo "2793"]
[Result "1-0"]
[Round "9"]
[TimeControl "180+2"]
[Date "2023.06.27"]
[WhiteClock "0:00:36"]
[BlackClock "0:00:00"]
[Board "34"]

1. d4 {[%clk 0:03:00]}  e6 {[%clk 0:02:59]} 2. e4 {[%clk 0:03:00]}  d5 {[%clk 0:02:59]} 3. Nc3 {[%clk 0:03:00]}  Bb4 {[%clk 0:03:00]} 4. Ne2 {[%clk 0:02:57]}  dxe4 {[%clk 0:02:58]} 5. a3 {[%clk 0:02:57]}  Be7 {[%clk 0:02:59]} 6. Nxe4 {[%clk 0:02:56]}  b6 {[%clk 0:02:59]} 7. N2g3 {[%clk 0:02:56]}  Bb7 {[%clk 0:03:00]} 8. Bd3 {[%clk 0:02:57]}  Nd7 {[%clk 0:02:59]} 9. O-O {[%clk 0:02:55]}  Ngf6 {[%clk 0:02:59]} 10. c3 {[%clk 0:02:53]}  O-O {[%clk 0:02:59]} 11. Qe2 {[%clk 0:02:51]}  c5 {[%clk 0:02:54]} 12. dxc5 {[%clk 0:02:50]}  Nxc5 {[%clk 0:02:55]} 13. Nxc5 {[%clk 0:02:51]}  Bxc5 {[%clk 0:02:56]} 14. Rd1 {[%clk 0:02:46]}  Qc7 {[%clk 0:02:53]} 15. Bg5 {[%clk 0:02:42]}  Qc6 {[%clk 0:02:47]} 16. Qf1 {[%clk 0:02:33]}  Ng4 {[%clk 0:02:38]} 17. Ne4 {[%clk 0:02:10]}  Qc7 {[%clk 0:02:15]} 18. g3 {[%clk 0:01:57]}  Bxe4 {[%clk 0:01:40]} 19. Bxe4 {[%clk 0:01:57]}  Nxf2 {[%clk 0:01:40]} 20. Bxa8 {[%clk 0:01:41]}  Nxd1+ {[%clk 0:01:24]} 21. Kg2 {[%clk 0:01:40]}  Rxa8 {[%clk 0:01:00]} 22. Rxd1 {[%clk 0:01:40]}  Qc6+ {[%clk 0:01:00]} 23. Qf3 {[%clk 0:01:40]}  Qxf3+ {[%clk 0:00:58]} 24. Kxf3 {[%clk 0:01:41]}  f6 {[%clk 0:00:58]} 25. Be3 {[%clk 0:01:38]}  Rc8 {[%clk 0:00:45]} 26. Bxc5 {[%clk 0:01:35]}  Rxc5 {[%clk 0:00:46]} 27. Rd7 {[%clk 0:01:36]}  Rf5+ {[%clk 0:00:42]} 28. Ke3 {[%clk 0:01:35]}  Re5+ {[%clk 0:00:42]} 29. Kf3 {[%clk 0:01:35]}  a5 {[%clk 0:00:40]} 30. b4 {[%clk 0:01:20]}  axb4 {[%clk 0:00:37]} 31. axb4 {[%clk 0:01:19]}  b5 {[%clk 0:00:37]} 32. Rb7 {[%clk 0:01:18]}  h5 {[%clk 0:00:35]} 33. Rc7 {[%clk 0:01:17]}  Rd5 {[%clk 0:00:27]} 34. Ke4 {[%clk 0:01:12]}  g5 {[%clk 0:00:22]} 35. h4 {[%clk 0:01:04]}  Kf8 {[%clk 0:00:14]} 36. Rh7 {[%clk 0:01:02]}  f5+ {[%clk 0:00:12]} 37. Ke3 {[%clk 0:01:00]}  gxh4 {[%clk 0:00:13]} 38. gxh4 {[%clk 0:01:00]}  Ke8 {[%clk 0:00:11]} 39. Kf4 {[%clk 0:00:55]}  Rd3 {[%clk 0:00:06]} 40. Ke5 {[%clk 0:00:55]}  Rxc3 {[%clk 0:00:05]} 41. Kxe6 {[%clk 0:00:55]}  Kd8 {[%clk 0:00:04]} 42. Rxh5 {[%clk 0:00:53]}  Rc4 {[%clk 0:00:04]} 43. Kd6 {[%clk 0:00:45]}  Kc8 {[%clk 0:00:03]} 44. Rxf5 {[%clk 0:00:43]}  Rxb4 {[%clk 0:00:03]} 45. h5 {[%clk 0:00:43]}  Rb1 {[%clk 0:00:00]} 46. h6 {[%clk 0:00:36]} 1-0


[Site "https://www.chess.com"]